Workbook

Sheet 県下の犯罪情勢
B2: 《令和7年7月末現在における県内の犯罪情勢》 | O2: チェック用
B4: 罪 種 | D4: R7年 7月末 | E4: R6年 7月末 | F4: 増減数 | G4: 増減率 （％） | H4: 割合 (※） | P4: Ｒ７ | Q4: Ｒ６
O5: 入力認知件数 | P5: =D6 -> 4083 | Q5: =E6 -> 3794
B6: 刑法犯認知件数 | D6: =SUM(D7,D12,D18,D29,D32,D37) -> 4083 | E6: =SUM(E7,E12,E18,E29,E32,E37) -> 3794 | F6: =D6-E6 -> 289 | G6: =F6/E6*100 -> 7.617290459 | H6: - | O6: 項目計 | P6: =SUM(D7,D12,D18,D29,D32,D37,) -> 4083 | Q6: =SUM(E7,E12,E18,E29,E32,E37,R16) -> 3794
B7: 凶悪犯 | D7: =SUM(D8:D11) -> 44 | E7: =SUM(E8:E11) -> 50 | F7: =D7-E7 -> -6 | G7: =F7/E7*100 -> -12 | H7: =D7/D6*100 -> 1.077638991 | P7: =IF(P5=P6,"ＯＫ","やりなおし") -> ＯＫ | Q7: =IF(Q5=Q6,"ＯＫ","やりなおし") -> ＯＫ
C8: 殺人 | D8: 0 | E8: 6 | F8: =D8-E8 -> -6 | G8: - | H8: =D8/D6*100 -> 0
C9: 強盗 | D9: 6 | E9: 1 | F9: 5 | G9: =F9/E9*100 -> 500 | H9: =D9/D6*100 -> 0.1469507715
C10: 放火 | D10: 5 | E10: 3 | F10: 2 | G10: =F10/E10*100 -> 66.66666667 | H10: =D10/D6*100 -> 0.1224589762
C11: 不同意性交等 | D11: 33 | E11: 40 | F11: -7 | G11: =F11/E11*100 -> -17.5 | H11: =D11/D6*100 -> 0.8082292432
B12: 粗暴犯 | D12: =SUM(D13:D17) -> 471 | E12: =SUM(E13:E17) -> 425 | F12: 46 | G12: =F12/E12*100 -> 10.82352941 | H12: =D12/D6*100 -> 11.53563556
C13: 凶器準備集合 | D13: 1 | E13: 0 | F13: 1 | G13: - | H13: 0.03
C14: 暴行 | D14: 252 | E14: 214 | F14: 38 | G14: 17.75700935 | H14: =D14/D6*100 -> 6.171932403
C15: 傷害 | D15: 160 | E15: 153 | F15: 7 | G15: 4.575163399 | H15: =D15/D6*100 -> 3.91868724
C16: 脅迫 | D16: 27 | E16: 40 | F16: -13 | G16: -32.5 | H16: =D16/D6*100 -> 0.6612784717
C17: 恐喝 | D17: 31 | E17: 18 | F17: 13 | G17: 72.22222222 | H17: =D17/D6*100 -> 0.7592456527
B18: 窃盗犯 | D18: =SUM(D19:D28) -> 2507 | E18: =SUM(E19:E28) -> 2466 | F18: 41 | G18: 1.662611517 | H18: =D18/D6*100 -> 61.40093069
C19: 空き巣 | D19: 49 | E19: 61 | F19: =D19-E19 -> -12 | G19: -19.67213115 | H19: =D19/D6*100 -> 1.200097967
C20: 忍込み | D20: 12 | E20: 16 | F20: -4 | G20: -25 | H20: =D20/D6*100 -> 0.293901543
C21: 自動車盗 | D21: 9 | E21: 8 | F21: 1 | G21: 12.5 | H21: =D21/D6*100 -> 0.2204261572
C22: オートバイ盗 | D22: 94 | E22: 66 | F22: 28 | G22: 42.42424242 | H22: =D22/D6*100 -> 2.302228753
C23: 自転車盗 | D23: 844 | E23: 822 | F23: 22 | G23: 2.676399027 | H23: =D23/D6*100 -> 20.67107519
C24: ひったくり | D24: 3 | E24: 2 | F24: 1 | G24: 50 | H24: =D24/D6*100 -> 0.07347538575
C25: 車上ねらい | D25: 85 | E25: 101 | F25: -16 | G25: =F25/E25*100 -> -15.84158416 | H25: =D25/D6*100 -> 2.081802596
C26: 自販機ねらい | D26: 5 | E26: 1 | F26: 4 | G26: 400 | H26: =D26/D6*100 -> 0.1224589762
C27: 万引き | D27: 642 | E27: 594 | F27: 48 | G27: 8.080808081 | H27: =D27/D6*100 -> 15.72373255
C28: 窃盗犯その他 | D28: 764 | E28: 795 | F28: -31 | G28: -3.899371069 | H28: =D28/D6*100 -> 18.71173157
B29: 知能犯 | D29: =SUM(D30:D31) -> 403 | E29: =SUM(E30:E31) -> 316 | F29: 87 | G29: 27.53164557 | H29: =D29/D6*100 -> 9.870193485
C30: 詐欺 | D30: 370 | E30: 291 | F30: 79 | G30: 27.14776632 | H30: =D30/D6*100 -> 9.061964242
C31: 知能犯その他 | D31: 33 | E31: 25 | F31: 8 | G31: 32 | H31: =D31/D6*100 -> 0.8082292432
B32: 風俗犯 | D32: =SUM(D33:D36) -> 181 | E32: =SUM(E33:E36) -> 124 | F32: 57 | G32: 45.96774194 | H32: =D32/D6*100 -> 4.43301494
C33: 賭博 | D33: 0 | E33: 1 | F33: -1 | G33: -100 | H33: =D33/D6*100 -> 0
C34: 不同意わいせつ | D34: 81 | E34: 47 | F34: 34 | G34: 72.34042553 | H34: =D34/D6*100 -> 1.983835415
C35: 公然わいせつ | D35: 16 | E35: 19 | F35: -3 | G35: -15.78947368 | H35: =D35/D6*100 -> 0.391868724
C36: 風俗犯その他 | D36: 84 | E36: 57 | F36: 27 | G36: =F36/E36*100 -> 47.36842105 | H36: =D36/D6*100 -> 2.057310801 | Q36: R３ | R36: R４ | S36: Ｒ５ | T36: Ｒ６ | U36: Ｒ７．７末
B37: その他の刑法犯 | D37: =SUM(D38:D40) -> 477 | E37: =SUM(E38:E40) -> 413 | F37: 64 | G37: 15.49636804 | H37: =D37/D6*100 -> 11.68258633 | P37: 刑法犯認知件数 | Q37: 5187 | R37: 4944 | S37: 6174 | T37: 6722 | U37: 4038
C38: 占有離脱物横領 | D38: 79 | E38: 62 | F38: 17 | G38: 27.41935484 | H38: =D38/D6*100 -> 1.934851825 | P38: 刑法犯検挙率 | Q38: 63.7 | R38: 58.8 | S38: 52.7 | T38: 51.8 | U38: 49.6
C39: 器物損壊 | D39: 240 | E39: 209 | F39: 31 | G39: 14.83253589 | H39: =D39/D6*100 -> 5.87803086
C40: その他 | D40: 158 | E40: 142 | F40: 16 | G40: 11.26760563 | H40: =D40/D6*100 -> 3.869703649
D41: ※ 割合：各罪種ごとの刑法犯認知件数に占める割合
B44: 《刑法犯認知件数・検挙率の推移（過去5年間）》
